fUST/lending_fUST_20250608
["ID","MTS","AMOUNT","RATE_DAILY","PERIOD"]
[364975025,1749372649690,-596.01,0.0002,2]
[364975026,1749372649700,-1258.02,0.0002,2]
[364975027,1749372649709,-1192.47,0.0002,2]
[364975028,1749372649722,-440.0,0.0002,2]
[364975029,1749372649732,-440.0,0.0002,2]
[364975030,1749372649742,-440.0,0.0002,2]
[364975031,1749372649751,-444.94576001,0.0002,2]
[364975032,1749372649762,-440.0,0.0002,2]
[364975033,1749372649771,-440.0,0.0002,2]
[364975034,1749372649781,-867.44,0.0002,2]
[364975035,1749372649791,-440.0,0.0002,2]
[364975036,1749372649802,-440.0,0.0002,2]
[364975037,1749372649812,-1283.36,0.0002,2]
[364975038,1749372649822,-440.0,0.0002,2]
[364975039,1749372649831,-218.706771,0.00020187,2]
[364975040,1749372649840,-189.362,0.00020195,2]
[364975041,1749372649850,-440.0,0.00020273,2]
[364975042,1749372649860,-440.0,0.00020273,2]
[364975043,1749372649870,-397.9206644,0.00020273,2]
[364975044,1749372649882,-440.0,0.00020273,2]
[364975045,1749372649895,-440.0,0.00020273,2]
[364975046,1749372649905,-440.0,0.00020273,2]
[364975047,1749372649915,-440.0,0.00020273,2]
[364975048,1749372649924,-440.0,0.00020273,2]
[364975049,1749372649934,-581.25053266,0.00020273,2]
[364975050,1749372649946,-440.0,0.00020273,2]
[364975051,1749372649956,-1255.12,0.00020273,2]
[364975052,1749372649966,-440.0,0.00020273,2]
[364975053,1749372649977,-551.85,0.00020273,2]
[364975054,1749372649987,-440.0,0.00020273,2]
[364975055,1749372649997,-440.0,0.00020273,2]
[364975056,1749372650007,-456.68199436,0.00020273,2]
[364975057,1749372650018,-440.0,0.00020273,2]
[364975058,1749372650028,-642.69,0.00020273,2]
[364975059,1749372650038,-440.0,0.00020273,2]
[364975060,1749372650049,-440.0,0.00020273,2]
[364975061,1749372650058,-703.87,0.00020273,2]
[364975062,1749372650068,-410.0,0.00020273,2]
[364975063,1749372650078,-430.0,0.00020273,2]
[364975064,1749372650088,-440.0,0.00020273,2]
[364975065,1749372650098,-440.0,0.00020273,2]
[364975066,1749372650108,-440.0,0.00020273,2]
[364975067,1749372650118,-440.0,0.00020273,2]
[364975068,1749372650127,-723.19,0.00020273,2]
[364975069,1749372650138,-440.0,0.00020273,2]
[364975070,1749372650147,-343.3,0.00020273,2]
[364975071,1749372650157,-440.0,0.00020273,2]
[364975072,1749372650167,-440.0,0.00020273,2]
[364975073,1749372650177,-440.0,0.00020273,2]
[364975074,1749372650187,-440.0,0.00020273,2]
[364975075,1749372650196,-447.0,0.00020273,2]
[364975076,1749372650206,-736.41,0.00020273,2]
[364975077,1749372650216,-440.0,0.00020273,2]
[364975078,1749372650227,-440.0,0.00020273,2]
[364975079,1749372650237,-622.28,0.00020273,2]
[364975080,1749372650247,-552.43,0.00020273,2]
[364975081,1749372650257,-440.0,0.00020273,2]
[364975082,1749372650267,-996.31,0.00020273,2]
[364975083,1749372650276,-440.0,0.00020273,2]
[364975084,1749372650287,-1351.39,0.00020273,2]
[364975085,1749372650296,-596.01,0.00020273,2]
[364975086,1749372650306,-1258.02,0.00020273,2]
[364975087,1749372650317,-1192.47,0.00020273,2]
[364975088,1749372650326,-440.0,0.00020273,2]
[364975089,1749372650337,-440.0,0.00020273,2]
[364975090,1749372650347,-440.0,0.00020273,2]
[364975091,1749372650357,-440.0,0.00020273,2]
[364975092,1749372650367,-867.44,0.00020273,2]
[364975093,1749372650377,-440.0,0.00020273,2]
[364975094,1749372650387,-440.0,0.00020273,2]
[364975095,1749372650397,-1283.36,0.00020273,2]
[364975096,1749372650408,-440.0,0.00020273,2]
[364975097,1749372650420,-4675.42,0.00020378,2]
[364975098,1749372650429,-436.16,0.00020547,2]
[364975099,1749372650439,-428.29126147,0.00020547,2]
[364975100,1749372650449,-440.0,0.00020547,2]
[364975101,1749372650458,-440.0,0.00020547,2]
[364975102,1749372650468,-430.0,0.00020547,2]
[364975103,1749372650477,-440.0,0.00020547,2]
[364975104,1749372650487,-420.0,0.00020547,2]
[364975105,1749372650496,-430.0,0.00020547,2]
[364975106,1749372650506,-1255.12,0.00020547,2]
[364975107,1749372650515,-440.0,0.00020547,2]
[364975108,1749372650525,-551.85,0.00020547,2]
[364975109,1749372650535,-440.0,0.00020547,2]
[364975110,1749372650545,-440.0,0.00020547,2]
[364975111,1749372650555,-440.0,0.00020547,2]
[364975112,1749372650565,-642.69,0.00020547,2]
[364975113,1749372650574,-440.0,0.00020547,2]
[364975114,1749372650583,-440.0,0.00020547,2]
[364975115,1749372650593,-703.87,0.00020547,2]
[364975116,1749372650602,-440.0,0.00020547,2]
[364975117,1749372650611,-440.0,0.00020547,2]
[364975118,1749372650620,-440.0,0.00020547,2]
[364975119,1749372650630,-440.0,0.00020547,2]
[364975120,1749372650639,-723.19,0.00020547,2]
[364975121,1749372650650,-440.0,0.00020547,2]
[364975122,1749372650660,-440.0,0.00020547,2]
[364975123,1749372650670,-440.0,0.00020547,2]
[364975124,1749372650680,-357.12583775,0.00020547,2]
[364975125,1749372650691,-440.0,0.00020547,2]
[364975126,1749372650701,-447.0,0.00020547,2]
[364975127,1749372650717,-736.41,0.00020547,2]
[364975128,1749372650727,-173.40771855,0.00020547,2]
[364975129,1749372650739,-430.0,0.00020547,2]
[364975130,1749372650749,-622.28,0.00020547,2]
[364975131,1749372650759,-552.43,0.00020547,2]
[364975132,1749372650769,-440.0,0.00020547,2]
[364975133,1749372650789,-996.31,0.00020547,2]
[364975134,1749372650802,-440.0,0.00020547,2]
[364975135,1749372650811,-1351.39,0.00020547,2]
[364975136,1749372650822,-596.01,0.00020547,2]
[364975137,1749372650832,-1258.02,0.00020547,2]
[364975138,1749372650843,-1192.47,0.00020547,2]
[364975139,1749372650852,-440.0,0.00020547,2]
[364975140,1749372650863,-440.0,0.00020547,2]
[364975141,1749372650875,-440.0,0.00020547,2]
[364975142,1749372650887,-440.0,0.00020547,2]
[364975143,1749372650897,-867.44,0.00020547,2]
[364975144,1749372650908,-440.0,0.00020547,2]
[364975145,1749372650920,-440.0,0.00020547,2]
[364975146,1749372650931,-1283.36,0.00020547,2]
[364975147,1749372650941,-500.0,0.00020547,2]
[364975148,1749372650951,-440.0,0.00020547,2]
[364975149,1749372650962,-1399.4,0.000206,2]
[364975150,1749372650972,-33432.49,0.000206,2]
[364975151,1749372650982,-806.72,0.000206,2]
[364975152,1749372650992,-440.0,0.00020821,2]
[364975153,1749372651003,-440.0,0.00020821,2]
[364975154,1749372651013,-440.0,0.00020821,2]
[364975155,1749372651023,-1255.12,0.00020821,2]
[364975156,1749372651033,-440.0,0.00020821,2]
[364975157,1749372651043,-551.85,0.00020821,2]
[364975158,1749372651053,-354.52,0.00020821,2]
[364975159,1749372651064,-440.0,0.00020821,2]
[364975160,1749372651074,-440.0,0.00020821,2]
[364975161,1749372651085,-642.69,0.00020821,2]
[364975162,1749372651096,-440.0,0.00020821,2]
[364975163,1749372651106,-271.88088943,0.00020821,2]
[364975164,1749372651116,-703.87,0.00020821,2]
[364975165,1749372651127,-440.0,0.00020821,2]
[364975166,1749372651138,-440.0,0.00020821,2]
[364975167,1749372651148,-440.0,0.00020821,2]
[364975168,1749372651159,-440.0,0.00020821,2]
[364975169,1749372651169,-723.19,0.00020821,2]
[364975170,1749372651179,-440.0,0.00020821,2]
[364975171,1749372651189,-440.0,0.00020821,2]
[364975172,1749372651199,-440.0,0.00020821,2]
[364975173,1749372651209,-447.0,0.00020821,2]
[364975174,1749372651219,-736.41,0.00020821,2]
[364975175,1749372651229,-622.28,0.00020821,2]
[364975176,1749372651239,-552.43,0.00020821,2]
[364975177,1749372651249,-440.0,0.00020821,2]
[364975178,1749372651259,-996.31,0.00020821,2]
[364975179,1749372651270,-440.0,0.00020821,2]
[364975180,1749372651281,-1351.39,0.00020821,2]
[364975181,1749372651290,-596.01,0.00020821,2]
[364975182,1749372651301,-1258.02,0.00020821,2]
[364975183,1749372651312,-1192.47,0.00020821,2]
[364975184,1749372651322,-440.0,0.00020821,2]
[364975185,1749372651334,-440.0,0.00020821,2]
[364975186,1749372651344,-440.0,0.00020821,2]
[364975187,1749372651355,-440.0,0.00020821,2]
[364975188,1749372651366,-867.44,0.00020821,2]
[364975189,1749372651377,-440.0,0.00020821,2]
[364975190,1749372651387,-430.0,0.00020821,2]
[364975191,1749372651399,-1283.36,0.00020821,2]
[364975192,1749372651410,-440.0,0.00020821,2]
[364975193,1749372651421,-800.0,0.00020883,2]
[364975194,1749372651431,-963.0,0.00020897,2]
[364975195,1749372651442,-695.849,0.00020897,2]
[364975196,1749372651452,-405.0,0.00020897,2]
[364975197,1749372651462,-247.364,0.00020897,2]
[364975198,1749372651471,-235.529,0.00020897,2]
[364975199,1749372651482,-152.115,0.00020897,2]
[364975200,1749372651492,-250.0,0.00020897,2]
[364975201,1749372651502,-209.204,0.00020897,2]
[364975202,1749372651512,-223.0315306,0.00020969,2]
[364975203,1749372651522,-823.0,0.00021014,2]
[364975204,1749372651532,-180.0,0.00021015,2]
[364975205,1749372651543,-823.0,0.00021015,2]
[364975206,1749372651553,-500.0,0.00021054,2]
[364975207,1749372651564,-500.0,0.00021054,2]
[364975208,1749372651574,-160.0,0.00021055,3]
[364975209,1749372651584,-472.2572686,0.00021095,2]
[364975210,1749372651594,-440.0,0.00021095,2]
[364975211,1749372651603,-440.0,0.00021095,2]
[364975212,1749372651612,-1255.12,0.00021095,2]
[364975213,1749372651622,-440.0,0.00021095,2]
[364975214,1749372651632,-551.85,0.00021095,2]
[364975215,1749372651642,-440.0,0.00021095,2]
[364975216,1749372651653,-440.0,0.00021095,2]
[364975217,1749372651662,-642.69,0.00021095,2]
[364975218,1749372651673,-440.0,0.00021095,2]
[364975219,1749372651682,-703.87,0.00021095,2]
[364975220,1749372651691,-440.0,0.00021095,2]
[364975221,1749372651701,-440.0,0.00021095,2]
[364975222,1749372651711,-292.09576905,0.00021095,2]
[364975223,1749372651720,-440.0,0.00021095,2]
[364975224,1749372651730,-723.19,0.00021095,2]
[364975225,1749372651738,-440.0,0.00021095,2]
[364975226,1749372651748,-440.0,0.00021095,2]
[364975227,1749372651757,-447.0,0.00021095,2]
[364975228,1749372651767,-736.41,0.00021095,2]
[364975229,1749372651775,-622.28,0.00021095,2]
[364975230,1749372651785,-552.43,0.00021095,2]
[364975231,1749372651794,-440.0,0.00021095,2]
[364975232,1749372651804,-996.31,0.00021095,2]
[364975233,1749372651814,-440.0,0.00021095,2]
[364975234,1749372651823,-1351.39,0.00021095,2]
[364975235,1749372651832,-596.01,0.00021095,2]
[364975236,1749372651842,-1258.02,0.00021095,2]
[364975237,1749372651851,-1192.47,0.00021095,2]
[364975238,1749372651861,-440.0,0.00021095,2]
[364975239,1749372651871,-430.0,0.00021095,2]
[364975240,1749372651883,-440.0,0.00021095,2]
[364975241,1749372651892,-440.0,0.00021095,2]
[364975242,1749372651902,-867.44,0.00021095,2]
[364975243,1749372651911,-244.06,0.00021095,2]
[364975244,1749372651922,-500.0,0.00021095,3]
[364975245,1749372651934,-1283.36,0.00021095,2]
[364975246,1749372651944,-194.69814232,0.00021095,2]
[364975247,1749372651955,-5844.28,0.00021227,2]
[364975248,1749372651964,-545.16430353,0.00021294,2]
[364975249,1749372651973,-500.0,0.00021294,2]
[364975250,1749372651983,-3292.0,0.00021332,2]
[364975251,1749372652107,-221.73,0.00021369,2]
[364975252,1749372652118,-362.37013248,0.00021369,2]
[364975253,1749372652128,-1255.12,0.00021369,2]
[364975254,1749372652137,-440.0,0.00021369,2]
[364975255,1749372652148,-551.85,0.00021369,2]
[364975256,1749372652157,-440.0,0.00021369,2]
[364975257,1749372652167,-440.0,0.00021369,2]
[364975258,1749372652178,-642.69,0.00021369,2]
[364975259,1749372652188,-440.0,0.00021369,2]
[364975260,1749372652197,-703.87,0.00021369,2]
[364975261,1749372652207,-440.0,0.00021369,2]
[364975262,1749372652216,-440.0,0.00021369,2]
[364975263,1749372652226,-440.0,0.00021369,2]
[364975264,1749372652235,-723.19,0.00021369,2]
[364975265,1749372652245,-440.0,0.00021369,2]
[364975266,1749372652254,-440.0,0.00021369,2]
[364975267,1749372652263,-447.0,0.00021369,2]
[364975268,1749372652273,-736.41,0.00021369,2]
[364975269,1749372652282,-622.28,0.00021369,2]
[364975270,1749372652292,-552.43,0.00021369,2]
[364975271,1749372652301,-440.0,0.00021369,2]
[364975272,1749372652311,-996.31,0.00021369,2]
[364975273,1749372652323,-440.0,0.00021369,2]
[364975274,1749372652332,-1351.39,0.00021369,2]
[364975275,1749372652342,-596.01,0.00021369,2]
[364975276,1749372652351,-1258.02,0.00021369,2]
[364975277,1749372652361,-1192.47,0.00021369,2]
[364975278,1749372652370,-440.0,0.00021369,2]
[364975279,1749372652379,-440.0,0.00021369,2]
[364975280,1749372652389,-440.0,0.00021369,2]
[364975281,1749372652399,-867.44,0.00021369,2]
[364975282,1749372652408,-1283.36,0.00021369,2]
[364975283,1749372652418,-502.06786853,0.00021602,2]
[364975284,1749372652427,-505.58408614,0.00021602,2]
[364975285,1749372652436,-1255.12,0.00021643,2]
[364975286,1749372652446,-368.62116447,0.00021643,2]
[364975287,1749372652455,-551.85,0.00021643,2]
[364975288,1749372652465,-440.0,0.00021643,2]
[364975289,1749372652474,-181.35486743,0.00021643,2]
[364975290,1749372652484,-642.69,0.00021643,2]
[364975291,1749372652493,-440.0,0.00021643,2]
[364975292,1749372652502,-703.87,0.00021643,2]
[364975293,1749372652511,-440.0,0.00021643,2]
[364975294,1749372652521,-440.0,0.00021643,2]
[364975295,1749372652531,-440.0,0.00021643,2]
[364975296,1749372652541,-723.19,0.00021643,2]
[364975297,1749372652551,-440.0,0.00021643,2]
[364975298,1749372652560,-440.0,0.00021643,2]
[364975299,1749372652569,-447.0,0.00021643,2]
[364975300,1749372652578,-736.41,0.00021643,2]
[364975301,1749372652588,-622.28,0.00021643,2]
[364975302,1749372652597,-552.43,0.00021643,2]
[364975303,1749372652606,-440.0,0.00021643,2]
[364975304,1749372652615,-996.31,0.00021643,2]
[364975305,1749372652625,-440.0,0.00021643,2]
[364975306,1749372652635,-1351.39,0.00021643,2]
[364975307,1749372652646,-596.01,0.00021643,2]
[364975308,1749372652657,-1258.02,0.00021643,2]
[364975309,1749372652667,-1192.47,0.00021643,2]
[364975310,1749372652679,-440.0,0.00021643,2]
[364975311,1749372652690,-440.0,0.00021643,2]
[364975312,1749372652701,-440.0,0.00021643,2]
[364975313,1749372652712,-867.44,0.00021643,2]
[364975314,1749372652723,-410.74096118,0.00021643,4]
[364975315,1749372652733,-1283.36,0.00021643,2]
[364975316,1749372652745,-508.73643888,0.00021842,2]
[364975317,1749372652755,-361.79,0.000219,14]
[364975318,1749372652766,-1255.12,0.00021917,2]
[364975319,1749372652776,-551.85,0.00021917,2]
[364975320,1749372652786,-565.26148408,0.00021917,2]
[364975321,1749372652796,-642.69,0.00021917,2]
[364975322,1749372652805,-440.0,0.00021917,2]
[364975323,1749372652815,-703.87,0.00021917,2]
[364975324,1749372652825,-440.0,0.00021917,2]
[364975325,1749372652835,-440.0,0.00021917,2]
[364975326,1749372652845,-440.0,0.00021917,2]
[364975327,1749372652854,-723.19,0.00021917,2]
[364975328,1749372652864,-440.0,0.00021917,2]
[364975329,1749372652876,-440.0,0.00021917,2]
[364975330,1749372652887,-447.0,0.00021917,2]
[364975331,1749372652896,-500.0,0.00021917,2]
[364975332,1749372652905,-736.41,0.00021917,2]
[364975333,1749372652915,-622.28,0.00021917,2]
[364975334,1749372652925,-552.43,0.00021917,2]
[364975335,1749372652934,-440.0,0.00021917,2]
[364975336,1749372652944,-996.31,0.00021917,2]
[364975337,1749372652954,-440.0,0.00021917,2]
[364975338,1749372652963,-1351.39,0.00021917,2]
[364975339,1749372652972,-596.01,0.00021917,2]
[364975340,1749372652982,-1258.02,0.00021917,2]
[364975341,1749372652991,-1192.47,0.00021917,2]
[364975342,1749372653001,-440.0,0.00021917,2]
[364975343,1749372653010,-440.0,0.00021917,2]
[364975344,1749372653019,-440.0,0.00021917,2]
[364975345,1749372653030,-867.44,0.00021917,2]
[364975346,1749372653042,-1283.36,0.00021917,2]
[364975347,1749372653052,-800.0,0.00021979,2]
[364975348,1749372653062,-500.0,0.00022,2]
[364975349,1749372653073,-110187.65,0.00022,7]
[364975350,1749372653083,-172.0,0.00022,2]
[364975351,1749372653093,-11853.97844947,0.00022,7]
[364975352,1749372653105,-7013.13,0.00022076,2]
[364975353,1749372653115,-1255.12,0.00022191,4]
[364975354,1749372653126,-642.69,0.00022191,4]
[364975355,1749372653135,-703.87,0.00022191,4]
[364975356,1749372653146,-440.0,0.00022191,4]
[364975357,1749372653156,-465.78,0.00022191,4]
[364975358,1749372653165,-440.0,0.00022191,4]
[364975359,1749372653175,-723.19,0.00022191,4]
[364975360,1749372653184,-479.92714381,0.00022191,4]
[364975361,1749372653194,-531.46,0.00022191,2]
[364975362,1749372653204,-447.0,0.00022191,4]
[364975363,1749372653217,-736.41,0.00022191,4]
[364975364,1749372653227,-622.28,0.00022191,4]
[364975365,1749372653237,-552.43,0.00022191,4]
[364975366,1749372653246,-563.26217665,0.00022191,4]
[364975367,1749372653255,-996.31,0.00022191,4]
[364975368,1749372653265,-440.0,0.00022191,4]
[364975369,1749372653275,-1351.39,0.00022191,4]
[364975370,1749372653285,-596.01,0.00022191,4]
[364975371,1749372653296,-1258.02,0.00022191,4]
[364975372,1749372653309,-1192.47,0.00022191,4]
[364975373,1749372653318,-440.0,0.00022191,4]
[364975374,1749372653329,-440.0,0.00022191,4]
[364975375,1749372653339,-440.0,0.00022191,4]
[364975376,1749372653351,-867.44,0.00022191,4]
[364975377,1749372653361,-1283.36,0.00022191,4]
[364975378,1749372653371,-361.79,0.000222,14]
[364975379,1749372653381,-806.72,0.000222,7]
[364975380,1749372653391,-231.28369723,0.00022338,2]
[364975381,1749372653401,-1255.12,0.00022465,4]
[364975382,1749372653410,-642.69,0.00022465,4]
[364975383,1749372653420,-703.87,0.00022465,4]
[364975384,1749372653430,-205.85,0.00022465,4]
[364975385,1749372653439,-440.0,0.00022465,4]
[364975386,1749372653452,-723.19,0.00022465,4]
[364975387,1749372653462,-447.0,0.00022465,4]
[364975388,1749372653472,-500.0,0.00022465,2]
[364975389,1749372653482,-736.41,0.00022465,4]
[364975390,1749372653495,-622.28,0.00022465,4]
[364975391,1749372653504,-552.43,0.00022465,4]
[364975392,1749372653516,-996.31,0.00022465,4]
[364975393,1749372653528,-440.0,0.00022465,4]
[364975394,1749372653538,-1351.39,0.00022465,4]
[364975395,1749372653547,-596.01,0.00022465,4]
[364975396,1749372653559,-1258.02,0.00022465,4]
[364975397,1749372653569,-1192.47,0.00022465,4]
[364975398,1749372653580,-440.0,0.00022465,4]
[364975399,1749372653590,-440.0,0.00022465,4]
[364975400,1749372653599,-440.0,0.00022465,4]
[364975401,1749372653608,-867.44,0.00022465,4]
[364975402,1749372653618,-1283.36,0.00022465,4]
[364975403,1749372653627,-800.0,0.00022515,2]
[364975404,1749372653637,-5000.0,0.00022603,2]
[364975405,1749372653648,-500.0,0.00022683,2]
[364975406,1749372653658,-800.0,0.00022697,2]
[364975407,1749372653667,-33432.49,0.000227,2]
[364975408,1749372653677,-12500.0,0.00022731,3]
[364975409,1749372653686,-1255.12,0.00022739,4]
[364975410,1749372653696,-642.69,0.00022739,4]
[364975411,1749372653705,-703.87,0.00022739,4]
[364975412,1749372653715,-723.19,0.00022739,4]
[364975413,1749372653724,-447.0,0.00022739,4]
[364975414,1749372653734,-736.41,0.00022739,4]
[364975415,1749372653743,-622.28,0.00022739,4]
[364975416,1749372653753,-552.43,0.00022739,4]
[364975417,1749372653762,-996.31,0.00022739,4]
[364975418,1749372653771,-440.0,0.00022739,4]
[364975419,1749372653780,-1351.39,0.00022739,4]
[364975420,1749372653789,-596.01,0.00022739,4]
[364975421,1749372653799,-1258.02,0.00022739,4]
[364975422,1749372653808,-1192.47,0.00022739,4]
[364975423,1749372653817,-440.0,0.00022739,4]
[364975424,1749372653827,-440.0,0.00022739,4]
[364975425,1749372653836,-440.0,0.00022739,4]
[364975426,1749372653845,-867.44,0.00022739,4]
[364975427,1749372653854,-1283.36,0.00022739,4]
[364975428,1749372653864,-842.5625,0.0002274,3]
[364975429,1749372653877,-511.72434709,0.00022748,2]
[364975430,1749372653887,-1399.4,0.000228,7]
[364975431,1749372653896,-11853.97844947,0.000228,3]
[364975432,1749372653905,-160.0,0.00022807,4]
[364975433,1749372653915,-8181.99,0.00022925,2]
[364975434,1749372653924,-1152.0,0.00022974,2]
[364975435,1749372653933,-1152.0,0.00022975,2]
[364975436,1749372653943,-500.0,0.00023,2]
[364975437,1749372653953,-500.0,0.00023,2]
[364975438,1749372653963,-423.98131849,0.00023,3]
[364975439,1749372653972,-160.0,0.00023,3]
[364975440,1749372653982,-160.0,0.00023,3]
[364975441,1749372653991,-1255.12,0.00023013,4]
[364975442,1749372654000,-642.69,0.00023013,4]
[364975443,1749372654010,-703.87,0.00023013,4]
[364975444,1749372654019,-723.19,0.00023013,4]
[364975445,1749372654028,-447.0,0.00023013,4]
[364975446,1749372654038,-500.0,0.00023013,2]
[364975447,1749372654047,-736.41,0.00023013,4]
[364975448,1749372654057,-622.28,0.00023013,4]
[364975449,1749372654066,-552.43,0.00023013,4]
[364975450,1749372654075,-996.31,0.00023013,4]
[364975451,1749372654084,-440.0,0.00023013,4]
[364975452,1749372654094,-1351.39,0.00023013,4]
[364975453,1749372654103,-596.01,0.00023013,4]
[364975454,1749372654112,-1258.02,0.00023013,4]
[364975455,1749372654122,-1192.47,0.00023013,4]
[364975456,1749372654132,-440.0,0.00023013,4]
[364975457,1749372654141,-440.0,0.00023013,4]
[364975458,1749372654151,-440.0,0.00023013,4]
[364975459,1749372654160,-867.44,0.00023013,4]
[364975460,1749372654282,-1283.36,0.00023013,4]
[364975461,1749372654293,-800.0,0.00023075,2]
[364975462,1749372654302,-800.0,0.00023075,2]
[364975463,1749372654312,-500.0,0.00023081,2]
[364975464,1749372654321,-1255.12,0.00023287,4]
[364975465,1749372654331,-642.69,0.00023287,4]
[364975466,1749372654340,-703.87,0.00023287,4]
[364975467,1749372654349,-723.19,0.00023287,4]
[364975468,1749372654359,-447.0,0.00023287,4]
[364975469,1749372654369,-736.41,0.00023287,4]
[364975470,1749372654379,-622.28,0.00023287,4]
[364975471,1749372654389,-552.43,0.00023287,4]
[364975472,1749372654398,-996.31,0.00023287,4]
[364975473,1749372654408,-335.11690168,0.00023287,4]
[364975474,1749372654417,-1351.39,0.00023287,4]
[364975475,1749372654428,-596.01,0.00023287,4]
[364975476,1749372654438,-1258.02,0.00023287,4]
[364975477,1749372654448,-1192.47,0.00023287,4]
[364975478,1749372654458,-440.0,0.00023287,4]
[364975479,1749372654467,-440.0,0.00023287,4]
[364975480,1749372654476,-440.0,0.00023287,4]
[364975481,1749372654485,-867.44,0.00023287,4]
[364975482,1749372654495,-151.71151387,0.00023397,2]
[364975483,1749372654504,-2200.0,0.0002345,2]
[364975484,1749372654513,-800.0,0.00023463,2]
[364975485,1749372654523,-110187.65,0.000235,7]
[364975486,1749372654532,-806.72,0.000235,7]
[364975487,1749372654541,-160.0,0.000235,7]
[364975488,1749372654551,-842.5625,0.000235,7]
[364975489,1749372654561,-500.0,0.00023505,2]
[364975490,1749372654570,-1255.12,0.00023561,4]
[364975491,1749372654580,-642.69,0.00023561,4]
[364975492,1749372654590,-703.87,0.00023561,4]
[364975493,1749372654599,-723.19,0.00023561,4]
[364975494,1749372654609,-447.0,0.00023561,4]
[364975495,1749372654618,-736.41,0.00023561,4]
[364975496,1749372654627,-622.28,0.00023561,4]
[364975497,1749372654637,-552.43,0.00023561,4]
[364975498,1749372654647,-996.31,0.00023561,4]
[364975499,1749372654656,-1351.39,0.00023561,4]
[364975500,1749372654665,-596.01,0.00023561,4]
[364975501,1749372654675,-1258.02,0.00023561,4]
[364975502,1749372654684,-1192.47,0.00023561,4]
[364975503,1749372654693,-440.0,0.00023561,4]
[364975504,1749372654703,-440.0,0.00023561,4]
[364975505,1749372654712,-440.0,0.00023561,4]
[364975506,1749372654721,-867.44,0.00023561,4]
[364975507,1749372654731,-4425.3473894,0.0002368,2]
[364975508,1749372654740,-239.84119403,0.00023707,2]
[364975509,1749372654749,-800.0,0.0002375,2]
[364975510,1749372654758,-986.0138735,0.00023753,3]
[364975511,1749372654768,-500.0,0.00023773,2]
[364975512,1749372654778,-500.0,0.00023773,2]
[364975513,1749372654787,-500.0,0.00023773,2]
[364975514,1749372654796,-500.0,0.00023773,2]
[364975515,1749372654805,-500.0,0.00023773,2]
[364975516,1749372654815,-600.0,0.00023773,2]
[364975517,1749372654824,-500.0,0.00023773,2]
[364975518,1749372654832,-500.0,0.00023773,2]
[364975519,1749372654842,-9350.84,0.00023774,2]
[364975520,1749372654851,-4425.34738932,0.00023776,2]
[364975521,1749372654860,-38826.90349677,0.0002378,2]
[364975522,1749372654961,-427.38381712,0.0002378,2]
[364975523,1749372655021,-440.0,0.00019452,2]
[364975524,1749372655030,-498.7908179,0.00023287,4]